Cogmind - Beta 14 @@@ ROGUE MODE // 2024.10.16 @ 23:24:22 Player: Mallow Result: Destroyed by S-43 Plague with Heavy Machine Gun Performance ------------- Evolutions (9) 4500 Regions Visited (24) 4800 Robots Destroyed (194) 970 Value Destroyed (9710) 9710 Prototype IDs (46) 920 Alien Tech Used (1) 200 Bonus (5672) 5672 TOTAL SCORE: 26772 Bonus ------- High Alert Combat Kills 1654 Follower Combat Kills 2276 Network Hubs Disabled 200 Aligned with FarCom 300 Met Warlord at Base 500 MAIN.C Attacked Warlord 500 A7 Reached Mainframe 300 Met R17 at Cetus 500 Friendly Fire -558 Cogmind --------- Core Integrity 0/1600 Matter 284/300 Energy 100/100 System Corruption 16% Temperature Cool (0) Movement Core (50) Location -1/Access Parts ------- > --- POWER (1) -------- (None) > --- PROPULSION (6) --- (None) > --- UTILITY (13) ----- (None) > --- WEAPON (5) ------- (None) > --- INVENTORY (5) ---- Antimatter Reactor Light Quantum Reactor Improved Launcher Guidance Computer Plasma Lance Peak State ------------ > --- POWER ------------ Quantum Reactor > --- PROPULSION ------- Heavy Siege Treads Spiked Heavy Treads Advanced Heavy Treads > --- UTILITY ---------- Advanced Power Amplifier Advanced Heat Sink Experimental Heat Sink Advanced Coolant Injector High-capacity Storage Unit Advanced Target Analyzer Experimental Core Analyzer Experimental Core Analyzer Improved Transmission Jammer Hacking Suite Improved Hacking Suite Improved System Shield Improved System Shield > --- WEAPON ----------- Enhanced Quantum Rifle Nova Cannon Nova Cannon Enhanced Nova Cannon Compact Linear Accelerator > --- INVENTORY -------- Antimatter Reactor Quantum Reactor Light Quantum Reactor Medium Treads Medium Treads Spiked Heavy Treads Advanced Heavy Treads Improved Antigrav System Improved Antigrav System Improved Antigrav System Small Matter Pod Improved Launcher Guidance Computer Improved Launcher Guidance Computer Enhanced Quantum Rifle Nova Cannon Compact Linear Accelerator Compact Linear Accelerator Plasma Lance [Rating: 189] Favorites ----------- Power Light Fission Core Engine Light Angular Momentum Engine Power Core Light Fission Core Reactor Quantum Reactor Propulsion Heavy Siege Treads Treads Heavy Siege Treads Leg Improved Titanium Leg Hover Unit Backup Propulsion III Flight Unit Flying Fortress v7 Utility Improved System Shield Device Improved Transmission Jammer Storage Medium Storage Unit Processor Armor Integrity Analyzer Hackware Improved System Shield Protection Centrium Medium Armor Plating Weapon Compact Linear Accelerator Energy Gun Quantum Rifle Energy Cannon Nova Cannon Ballistic Gun Advanced KE Penetrator Ballistic Cannon Compact Linear Accelerator Launcher Precision Rocket Launcher Special Weapon RU-N14's Throwing Claymores Impact Weapon Great Maul Slashing Weapon Power Sword Piercing Weapon Lance Build | -11 -10 -10 -10 -9 -8 -7 -6 -6 -6 -6 -5 -5 -5 -5 -5 -5 -4 -4 -4 -4 -3 -3 -2 -1 ------- Run | Yrd Mat Min Exi Min Mat Fac Fac Low Low Zio Pro Fac Ext Cet Arc Hub Fac Upp Upp War Pro Res Res Acc Slots Evolved 18 | . . . . . 4 2 2 . . . . 2 . . . . 2 . . . . 2 2 2 Power . | . . . . . . . . . . . . . . . . . . . . . . . . . Propulsion 4 | . . . . . 2 . . . . . . . . . . . . . . . . 1 . 1 Utility 11 | . . . . . 2 2 . . . . . 2 . . . . 2 . . . . 1 2 . Weapon 3 | . . . . . . . 2 . . . . . . . . . . . . . . . . 1 Parts Attached 264 | 6 3 . . . 21 3 10 1 1 9 . 3 17 5 5 16 13 5 9 7 17 20 30 63 Power 26 | 1 . . . . 4 1 1 . . . . . 2 1 . 3 1 1 . . 4 . 2 5 Engine 6 | 1 . . . . 1 1 . . . . . . 1 1 . . . . . . 1 . . . Core 6 | . . . . . 3 . 1 . . . . . 1 . . 1 . . . . . . . . Reactor 14 | . . . . . . . . . . . . . . . . 2 1 1 . . 3 . 2 5 Propulsion 51 | 2 . . . . 3 . . . . . . . 4 . . 7 2 . 2 . 5 7 6 13 Treads 14 | 2 . . . . . . . . . . . . . . . . 2 . 2 . . . 3 5 Leg 11 | . . . . . . . . . . . . . 4 . . 7 . . . . . . . . Wheel . | . . . . . . . . . . . . . . . . . . . . . . . . . Hover 7 | . . . . . 1 . . . . . . . . . . . . . . . . . . 6 Flight 19 | . . . . . 2 . . . . . . . . . . . . . . . 5 7 3 2 Utility 93 | 1 1 . . . 6 1 3 . 1 4 . 2 4 3 4 4 3 2 6 5 3 10 11 19 Device 35 | . . . . . 2 1 2 . 1 2 . 1 3 . 2 . 1 2 1 2 . 3 3 9 Storage 7 | 1 1 . . . . . . . . 1 . . . . . . . . 1 . . . 1 2 Processor 13 | . . . . . 2 . 1 . . . . . . . . . . . . 1 . 1 3 5 Hackware 14 | . . . . . 1 . . . . 1 . 1 . 1 1 3 . . 2 2 . 1 1 . Protection 24 | . . . . . 1 . . . . . . . 1 2 1 1 2 . 2 . 3 5 3 3 Artifact . | . . . . . . . . . . . . . . . . . . . . . . . . . Weapon 94 | 2 2 . . . 8 1 6 1 . 5 . 1 7 1 1 2 7 2 1 2 5 3 11 26 Energy Gun 15 | . . . . . . . 1 . . . . . . . . . 3 . . 1 2 1 1 6 Energy Cannon 18 | . . . . . . . . . . . . . . . . . . . . . 3 . 1 14 Ballistic Gun 17 | 2 1 . . . 6 . . . . . . . 1 1 . 1 1 2 . . . 1 1 . Ballistic Cannon 17 | . . . . . . 1 3 . . 1 . 1 1 . . . . . . . . . 5 5 Launcher 13 | . 1 . . . 2 . 1 . . 2 . . 5 . . . 1 . . . . . 1 . Special Weapon 6 | . . . . . . . . . . 1 . . . . 1 1 2 . . . . . 1 . Impact Weapon 1 | . . . . . . . 1 . . . . . . . . . . . . . . . . . Slashing Weapon 3 | . . . . . . . . 1 . 1 . . . . . . . . 1 . . . . . Piercing Weapon 4 | . . . . . . . . . . . . . . . . . . . . 1 . 1 1 1 Special Melee Weapon . | . . . . . . . . . . . . . . . . . . . . . . . . . Unidentified Prototypes 20 | . . . . . 2 . 2 . . 3 . . . 2 . 1 . 1 . 1 . 1 6 1 Parts Lost 54 | . . . . . 1 . . . 1 . . . 2 1 . 2 . 3 12 . 3 10 1 18 Power 5 | . . . . . . . . . . . . . . . . . . 1 1 . 1 1 . 1 Propulsion 14 | . . . . . . . . . . . . . . . . . . . 4 . 1 4 . 5 Utility 18 | . . . . . . . . . 1 . . . 1 . . . . 1 3 . . 4 . 8 Weapon 17 | . . . . . 1 . . . . . . . 1 1 . 2 . 1 4 . 1 1 1 4 Highest Loss Streak 4 | . . . . . 1 . . . 1 . . . 1 1 . 2 . 2 4 . 2 4 1 4 To Critical Strikes 1 | . . . . . . . . . . . . . . . . . . . . . 1 . . . Average Slot Usage (%) 83 | . 85 85 85 85 69 68 77 79 78 80 80 78 79 99 99 99 96 86 79 70 78 78 82 81 Engine 1 | . 14 14 14 14 2 6 2 . . . . . 1 5 5 . . . . 4 3 . . . Core 1 | . . . . . 6 . 3 6 6 6 6 5 3 . . 3 . . . . . . . . Reactor 2 | . . . . . . . . . . . . . . . . 1 5 4 3 . . 2 3 3 Treads 5 | . 28 28 28 28 . . . . . . . . . . . . . 10 10 . . . 8 10 Leg 4 | . . . . . . . . . . . . . 4 23 23 23 20 . . . . . . . Flight 2 | . . . . . 8 7 6 6 6 6 6 5 4 . . . . . . . 4 18 1 . Device 8 | . . . . . 5 6 11 13 15 14 13 17 14 6 4 1 3 7 8 5 3 1 9 15 Storage 5 | . 14 14 14 14 9 7 6 6 6 6 6 5 5 5 5 5 5 5 7 . . . 3 4 Processor 4 | . . . . . 6 7 6 6 6 6 6 5 5 5 5 4 . . . 3 5 4 7 9 Hackware 21 | . . . . . 5 7 6 6 6 11 13 17 17 21 23 31 36 31 22 34 42 38 27 15 Protection 3 | . . . . . 6 7 6 6 2 . . . 1 5 5 1 6 5 8 . . 3 4 1 Energy Gun 2 | . . . . . . . . . . . . . . . . . 7 10 8 5 3 . . 3 Energy Cannon 1 | . . . . . . . . . . . . . . . . . . . . . . . . 8 Ballistic Gun 4 | . 15 14 14 14 10 7 1 . . . . . . 5 11 10 4 4 4 . . 3 4 . Ballistic Cannon 4 | . . . . . . 6 12 13 13 13 13 11 10 9 2 . . . . . . . 8 6 Launcher 2 | . 12 14 14 14 7 . 4 6 6 6 6 2 . . . . 5 5 3 . . . . . Slashing Weapon 1 | . . . . . . . . . 6 5 6 5 5 5 5 4 . . . 5 . . . . Peak Build Rating 189 | 6 7 6 10 10 54 57 78 80 82 87 85 98 96 86 90 92 118 118 121 77 83 119 164 189 Average Rating 101 | 4 6 6 7 10 48 56 73 78 79 83 85 94 87 80 84 88 103 114 98 63 74 105 138 170 On Entrance 65 | . 6 6 6 10 10 54 57 78 80 82 85 85 91 80 84 90 70 118 118 42 77 83 65 164 Naked Turns 74 | . . . . . . . . . . . . . . . . . . . . . . . . 74 Heaviest Build 134 | 11 23 17 17 17 32 38 50 50 49 46 42 43 52 52 51 50 60 66 74 17 41 31 124 134 Greatest Support 220 | 40 40 40 40 40 56 50 50 50 50 50 50 50 80 80 80 80 140 140 140 16 24 38 168 220 Greatest Overweight (x) 10 | . . . . . 10 . . . . . . . . . . . . . . 2 5 2 . . Average Overweight (x) . | . . . . . . . . . . . . . . . . . . . . . . . . . Largest Inventory Capacity 20 | 8 10 10 10 10 10 10 10 10 10 10 10 10 10 10 10 10 10 10 10 5 5 5 20 20 Average Capacity 11 | 6 9 10 10 10 10 10 10 10 10 10 10 10 10 10 10 10 10 10 9 5 5 5 16 19 Most Carried 20 | 1 6 7 10 10 10 10 10 10 10 10 10 10 10 10 10 10 10 10 10 5 5 5 19 20 Average Carried 10 | . 4 6 8 10 9 9 9 10 10 9 10 9 8 9 9 9 8 9 7 4 4 4 11 17 Final Capacity 20 | 8 10 10 10 10 10 10 10 10 10 10 10 10 10 10 10 10 10 10 5 5 5 5 20 5 Final Carried 19 | 1 6 7 10 10 10 10 10 10 10 10 10 9 8 10 10 8 10 9 5 5 5 5 19 4 Class Distribution -------------------- 17% | Hacker-Gunner 16% | Wizard-Tank 10% | Wizard-Mutant 9% | Wizard-Skirmisher 8% | Mutant 7% | Hacker-Mutant 5% | Commander-Skirmisher 5% | Hacker-Skirmisher 4% | Scout 3% | Hacker-Tank Dominant Class ---------------- Mutant | -10/Materials Mutant | -10/Mines Mutant | -10/Exiles Mutant | -9/Mines Mutant | -8/Materials Scout | -7/Factory Infiltrator-Skirmisher | -6/Factory Infiltrator-Gunner | -6/Lower Caves Infiltrator-Gunner | -6/Lower Caves Hacker-Gunner | -6/Zion Hacker-Gunner | -5/Proximity Caves Hacker-Mutant | -5/Factory Hacker-Mutant | -5/Extension Commander-Skirmisher | -5/Cetus Commander-Skirmisher | -5/Archives Wizard-Skirmisher | -5/Hub_04(d) Wizard-Skirmisher | -4/Factory Wizard-Tank | -4/Upper Caves Hacker-Tank | -4/Upper Caves Wizard-Mutant | -4/Warlord Wizard-Mutant | -3/Proximity Caves Wizard-Sprinter | -3/Research Wizard-Tank | -2/Research Hacker-Gunner | -1/Access Resources | -11 -10 -10 -10 -9 -8 -7 -6 -6 -6 -6 -5 -5 -5 -5 -5 -5 -4 -4 -4 -4 -3 -3 -2 -1 ----------- Run | Yrd Mat Min Exi Min Mat Fac Fac Low Low Zio Pro Fac Ext Cet Arc Hub Fac Upp Upp War Pro Res Res Acc Matter Collected 6230 | 210 30 81 . . 566 89 100 10 80 . 65 194 747 269 82 367 122 333 414 47 207 281 623 1313 Remotely . | . . . . . . . . . . . . . . . . . . . . . . . . . Salvage Created 8804 | . 98 28 . . 541 . 133 . 76 . 39 147 669 133 395 683 239 543 348 . 115 157 361 4099 Parts 433 | . 8 3 . . 46 . 3 . 6 . 1 3 35 6 34 38 5 17 14 . 6 13 15 180 Haulers Intercepted 5 | . 1 . . . 2 . . . . . . . . . . 1 1 . . . . . . . Recyclers Shooed 4 | . . . . . 1 . . . . . . . . . . . 1 . . . . . . 2 Parts Field Recycled . | . . . . . . . . . . . . . . . . . . . . . . . . . Retrieved Matter . | . . . . . . . . . . . . . . . . . . . . . . . . . Parts Self-Destructed 30 | . . . . . . . . . 3 . . . . . . . . 16 9 . 2 . . . Prevented 2 | . . . . . . . . 2 . . . . . . . . . . . . . . . . Kills | -11 -10 -10 -10 -9 -8 -7 -6 -6 -6 -6 -5 -5 -5 -5 -5 -5 -4 -4 -4 -4 -3 -3 -2 -1 ------- Run | Yrd Mat Min Exi Min Mat Fac Fac Low Low Zio Pro Fac Ext Cet Arc Hub Fac Upp Upp War Pro Res Res Acc Combat Hostiles Destroyed 155 | . 2 3 . . 15 . . . 6 . 1 2 16 2 1 9 . 13 13 . 3 2 7 60 Melee 7 | . . . . . . . . . . . . . 1 . . 2 . . . . 3 1 . . Guns 32 | . . 1 . . 5 . . . . . . . . 1 1 2 . 5 4 . . 1 5 7 Cannons 60 | . . . . . . . . . . . . 2 5 1 . . . . . . . . 2 50 AOE 54 | . 2 2 . . 10 . . . 6 . 1 . 10 . . 5 . 8 9 . . . . 1 Classes Destroyed 18 | . 2 1 . . 5 . 2 . . . 1 1 . . . 1 . 1 . . . . 3 1 Worker 8 | . . . . . 3 . . . . . . . . . . 4 . . . . . . . 1 Builder 5 | . . . . . . . . . . . . . . . . 3 . . . . . 1 . 1 Tunneler 2 | . . . . . . . 1 . . . . . . . . . . . . . . . . 1 Hauler 5 | . 1 . . . 2 . . . . . . . . . . 1 1 . . . . . . . Recycler 5 | . . . . . . . 1 . . . . 1 1 . . 1 1 . . . . . . . Operator 12 | . . . . . 2 . . . . . . . . . 9 1 . . . . . . . . Watcher 5 | . . . . . 2 . . . . . . . 1 1 . . . . . . . . . 1 Swarmer 47 | . . 3 . . 8 . . . 6 . . . 8 . . . . 5 4 . 3 . 2 8 Grunt 46 | . 2 . . . . . . . . . . . 4 . . 2 . 7 6 . . . . 25 Brawler 5 | . . . . . . . . . . . . . . . . . . 1 . . . . . 4 Duelist 3 | . . . . . . . . . . . 1 . . . . . . . . . . . . 2 Sentry 13 | . . . . . 6 . . . . . . . 2 . 1 2 . . 1 . . . . 1 Demolisher 1 | . . . . . . . . . . . . . . . . . . . . . . . 1 . Hunter 11 | . . . . . 1 . . . . . . . . . . 3 . . . . . . 2 5 Programmer 20 | . . . . . . . . . . . . 2 . . . . . . 2 . . 2 . 14 Behemoth 1 | . . . . . . . . . . . . . . . . . . . . . . . . 1 Cetus Guard 2 | . . . . . . . . . . . . . . 2 . . . . . . . . . . Lightning 2 | . . . . . . . . . . . . . . . . 2 . . . . . . . . Striker 1 | . . . . . . . . . . . . . . . . . . . . . . . 1 . Executioner 1 | . . . . . . . . . . . . . . . . . . . . . . . 1 . Thug 3 | . . . . . . . . . . . . . 3 . . . . . . . . . . . Guerrilla 1 | . . . . . . . . . . . . . 1 . . . . . . . . . . . Best Kill Streak 12 | . 2 3 . . 5 . 1 . 3 . 1 1 5 2 3 12 2 5 4 . 3 1 3 9 Combat Bots Only 9 | . 2 3 . . 3 . . . 3 . 1 1 5 1 1 3 . 5 4 . 3 1 3 9 Max Kills in Single Turn 5 | . 1 2 . . 5 . 1 . 2 . 1 1 3 1 1 5 1 2 2 . 1 1 1 4 Gunslinging . | . . . . . . . . . . . . . . . . . . . . . . . . . Exploded 3 | . 1 2 . . 3 . . . 2 . 1 . 3 . . 2 . 2 2 . . . . 1 Melee 1 | . . . . . . . . . . . . . 1 . . 1 . . . . 1 1 . . Uniques/NPCs Destroyed . | . . . . . . . . . . . . . . . . . . . . . . . . . Combat | -11 -10 -10 -10 -9 -8 -7 -6 -6 -6 -6 -5 -5 -5 -5 -5 -5 -4 -4 -4 -4 -3 -3 -2 -1 -------- Run | Yrd Mat Min Exi Min Mat Fac Fac Low Low Zio Pro Fac Ext Cet Arc Hub Fac Upp Upp War Pro Res Res Acc Hostile Shots Fired 1167 | . 3 4 . . 54 2 9 5 14 . 14 20 47 27 2 40 44 78 136 3 31 95 32 507 Missed 354 | . 1 1 . . 20 2 6 2 5 . 5 8 20 12 . 12 13 19 32 1 8 37 5 145 Damage Taken 18100 | . 257 60 . . 634 26 21 41 114 . 298 242 570 298 57 978 336 1172 2042 63 570 1267 867 8187 Core 3036 | . . 9 . . 6 . 5 . 18 . 11 . 27 15 . 243 56 121 183 40 223 356 113 1610 Absorbed by Shields 492 | . . . . . . . . . . . . . . 122 . . . 74 296 . . . . . Reduced by Siege Mode 1280 | . . . . . . . . . . . . . . . . . . 164 103 . . . 55 958 Regen/Repaired (Parts) 10 | . . . . . . . . . . . . . . . . . . . . 10 . . . . Core Remaining (%) 85 | 100 . . . 96 98 100 . . . . 96 . . . . 71 . . . . 45 72 92 . Volleys Fired 436 | . 4 4 . . 75 1 . . 5 . 8 13 33 14 2 32 15 40 29 . 2 31 21 107 Largest 5 | . 2 1 . . 2 1 . . 1 . 2 2 3 3 3 2 3 3 4 . 1 1 4 5 Hottest 486 | . 50 30 . . 58 48 . . 43 . 96 96 148 140 127 70 223 223 264 . 88 94 240 486 Shots Fired 845 | . 6 4 . . 82 1 . . 5 . 12 26 48 31 6 55 21 51 48 . 2 31 55 361 Gun 346 | . 4 3 . . 69 . . . . . . . . 12 4 47 15 42 26 . . 31 22 71 Cannon 411 | . . . . . . 1 . . . . 8 26 30 19 2 . . . . . 2 . 33 290 Launcher 74 | . 2 1 . . 13 . . . 5 . 4 . 18 . . . . 9 22 . . . . . Special 14 | . . . . . . . . . . . . . . . . 8 6 . . . . . . . Kinetic 440 | . 4 3 . . 69 1 . . . . 8 26 30 31 6 47 8 31 9 . . 30 49 88 Thermal 321 | . . . . . . . . . . . . . . . . . 13 11 17 . . 1 6 273 Explosive 82 | . 2 1 . . 13 . . . 5 . 4 . 18 . . 8 . 9 22 . . . . . Electromagnetic 2 | . . . . . . . . . . . . . . . . . . . . . 2 . . . Robot Hit Streak 30 | . 2 2 . . 15 . . . 1 . 2 5 8 5 3 14 7 13 18 . 19 4 4 30 Robot Miss Streak 6 | . 1 1 . . 3 . . . 2 . 6 2 2 3 2 2 1 4 2 . . 5 4 3 Penetration Max 1 | . . . . . 1 . . . . . . . . 1 . 1 . . . . . 1 . 1 Secondary Targets 1 | . . . . . . . . . . . . . . . . . . 1 . . . . . . Max Gunslinging Chain 1 | . . . . . . . . . . . . . . . . . . 1 . . . . . . Shots Hit Robots 554 | . 3 3 . . 51 . 2 . 1 . 2 19 27 16 19 45 7 35 33 . 4 19 26 242 Core Hits 370 | . 4 3 . . 35 . 1 . 7 . 2 5 46 13 7 35 5 24 32 . 3 8 11 129 Critical Kills 13 | . . . . . . . 1 . . . . . . 1 1 2 . 3 . . . . 3 2 Critical Parts Destroyed 13 | . . . . . . . . . . . . . . 3 . 5 . 1 1 . . 3 . . Critical Strikes 41 | . . . . . . . 1 . . . . 1 . 5 2 11 . 4 1 . 1 3 6 6 Meltdown 2 | . . . . . . . . . . . . . . . . . . . . . . . . 2 Destroy 25 | . . . . . . . . . . . . . . 4 2 7 . 4 1 . . 3 4 . Blast 8 | . . . . . . . . . . . . 1 . 1 . . . . . . . . 2 4 Smash 1 | . . . . . . . 1 . . . . . . . . . . . . . . . . . Sever 4 | . . . . . . . . . . . . . . . . 4 . . . . . . . . Impale 1 | . . . . . . . . . . . . . . . . . . . . . 1 . . . Melee Attacks 106 | . . . . . . . 9 . . . . 10 10 3 17 15 . . . . 7 31 . 4 Impact 9 | . . . . . . . 9 . . . . . . . . . . . . . . . . . Slashing 55 | . . . . . . . . . . . . 10 10 3 17 15 . . . . . . . . Piercing 42 | . . . . . . . . . . . . . . . . . . . . . 7 31 . 4 Sneak Attacks 21 | . . . . . . . 2 . . . . 1 3 . 13 2 . . . . . . . . Combat Hostiles 1 | . . . . . . . . . . . . . 1 . . . . . . . . . . . Follow-up Attacks . | . . . . . . . . . . . . . . . . . . . . . . . . . Damage Inflicted 27785 | . 104 96 . . 1734 . 160 . 355 . 161 659 2538 590 1512 3017 206 1889 2492 . 138 793 890 10451 Guns 6231 | . 6 19 . . 958 . . . . . . . . 67 38 573 195 755 533 . . 734 360 1993 Cannons 10208 | . . . . . . . . . . . 52 570 584 523 . . . . . . 31 . 530 7918 Explosions 8414 | . 92 77 . . 776 . . . 355 . 109 . 1631 . . 1831 . 1134 1959 . . . . 450 Melee 2595 | . . . . . . . 160 . . . . 89 323 . 1474 383 . . . . 107 59 . . Ramming 135 | . 6 . . . . . . . . . . . . . . 28 11 . . . . . . 90 Kinetic 8039 | . 6 19 . . 958 . . . . . 52 570 584 590 38 573 25 614 135 . . 734 772 2369 Thermal 8369 | . . . . . . . . . . . . . . . . . 170 141 398 . . . 118 7542 Explosive 8414 | . 92 77 . . 776 . . . 355 . 109 . 1631 . . 1831 . 1134 1959 . . . . 450 Electromagnetic 31 | . . . . . . . . . . . . . . . . . . . . . 31 . . . Impact 160 | . . . . . . . 160 . . . . . . . . . . . . . . . . . Slashing 2471 | . . . . . . . . . . . . 89 323 . 1474 585 . . . . . . . . Piercing 166 | . . . . . . . . . . . . . . . . . . . . . 107 59 . . Highest Corruption 16 | . . . . . . . . . . . . 2 2 2 2 7 . . 2 2 . 6 . 16 Average Corruption 2 | . . . . . . . . . . . . 1 2 2 1 5 . . 1 2 . 5 . 5 Corruption Purged 2 | . . . . . . . . . . . . . . . 2 . . . . . . . . . Corruption Blocked . | . . . . . . . . . . . . . . . . . . . . . . . . . Effects 58 | . . . . . . . . . . . . 5 4 9 1 1 . . 12 . . 7 . 19 Message Errors 11 | . . . . . . . . . . . . . 1 1 1 . . . 5 . . 1 . 2 Matter Fused 18 | . . . . . . . . . . . . 2 1 3 . . . . 3 . . . . 9 Heat Flow Errors 3 | . . . . . . . . . . . . 1 . . . . . . 2 . . . . . Energy Discharges 6 | . . . . . . . . . . . . 2 . 1 . . . . 1 . . 2 . . Parts Rejected 1 | . . . . . . . . . . . . . . . . . . . . . . 1 . . Data Loss (minor) 7 | . . . . . . . . . . . . . 1 2 . 1 . . . . . 1 . 2 Data Loss (major) 2 | . . . . . . . . . . . . . 1 . . . . . . . . 1 . . Misfires 3 | . . . . . . . . . . . . . . 1 . . . . 1 . . . . 1 Alerts 1 | . . . . . . . . . . . . . . . . . . . . . . 1 . . Misdirections 3 | . . . . . . . . . . . . . . . . . . . . . . . . 3 Weapon Failures 3 | . . . . . . . . . . . . . . 1 . . . . . . . . . 2 Overload Shots . | . . . . . . . . . . . . . . . . . . . . . . . . . Overflow Damage 1233 | . . . . . 31 . 62 . 89 . . . 40 . 453 144 . 38 62 . 1 . 68 245 Projectiles 280 | . . . . . . . . . . . . . . . . . . . . . 1 . 68 211 Explosions 292 | . . . . . 31 . . . 89 . . . 8 . . 36 . 38 62 . . . . 28 Melee 661 | . . . . . . . 62 . . . . . 32 . 453 108 . . . . . . . 6 Knockbacks 25 | . . . . . . . . . . . 1 10 1 2 . . 1 . . . . . 3 7 Impact 2 | . . . . . . . . . . . . . . . . . 1 . . . . . . 1 Kinetic 23 | . . . . . . . . . . . 1 10 1 2 . . . . . . . . 3 6 Secondary . | . . . . . . . . . . . . . . . . . . . . . . . . . Self-Inflicted Damage 508 | . . 34 . . 121 . . . . . 69 . 42 . . . . 92 147 . . . . 3 Shots 16 | . . 1 . . 5 . . . . . 2 . 2 . . . . 2 4 . . . . . Rammed 9 | . 1 . . . . . . . . . . . . . . . 2 . . . . . . 6 Targets Rammed 13 | . 2 . . . . . . . . . . . . . . 2 3 . . . . . . 6 Kicked 3 | . . . . . . . . . . . . . . . . 2 1 . . . . . . . Crushed 1 | . 1 . . . . . . . . . . . . . . . . . . . . . . . Highest Temperature 717 | . 6 . . . 66 15 . . 6 . 75 148 218 320 33 . 259 270 717 . 14 49 239 482 Average Temperature 103 | . 4 . . . 18 11 . . 4 . 27 70 69 142 17 . 127 125 163 . 7 26 87 131 Received Heat Transfer 1963 | . 18 . . . 171 . 6 . . . 36 . 144 48 9 36 . 316 600 . 36 81 9 453 Effects 21 | . . . . . . . . . . . . . . 3 . . . 1 5 . . . . 12 Shutdowns 4 | . . . . . . . . . . . . . . . . . . . 2 . . . . 2 Energy Bleed 4 | . . . . . . . . . . . . . . . . . . 1 1 . . . . 2 Interference 8 | . . . . . . . . . . . . . . 3 . . . . 1 . . . . 4 Matter Decay 1 | . . . . . . . . . . . . . . . . . . . 1 . . . . . Short Circuit 3 | . . . . . . . . . . . . . . . . . . . . . . . . 3 Damage (minor) 1 | . . . . . . . . . . . . . . . . . . . . . . . . 1 Siege Activations 28 | . . . . . . . . . . . . . . . . . . 2 2 . . . 4 20 Total Turns 575 | . . . . . . . . . . . . . . . . . . 60 25 . . . 45 445 Longest Duration 47 | . . . . . . . . . . . . . . . . . . 47 14 . . . 20 46 Robots Corrupted 1 | . . . . . . . . . . . . . . . . . . . . . . . . 1 Combat Hostiles . | . . . . . . . . . . . . . . . . . . . . . . . . . Parts Fried 6 | . . . . . . . 1 . . . . . . 1 . 1 . . . . . . . 3 Impact Corruptions 4 | . . . . . . . 2 . . . . . . . . . . . . . . . . 2 Robots Melted 2 | . . . . . . . . . . . . . . . . . . . . . . . . 2 Combat Hostiles 2 | . . . . . . . . . . . . . . . . . . . . . . . . 2 Parts Melted 24 | . . . . . 1 . . . . . . . . . . . 1 . . . . . . 22 Heat Transferred 7966 | . . . . . . . . . . . . . . . . . 222 185 481 . . . 148 6930 Parts Sabotaged 2 | . . . . . . . . . . . . . . . . . . . . . . . . 2 Parts Stolen . | . . . . . . . . . . . . . . . . . . . . . . . . . Parts Stripped . | . . . . . . . . . . . . . . . . . . . . . . . . . Power Chain Reactions . | . . . . . . . . . . . . . . . . . . . . . . . . . Alert | -11 -10 -10 -10 -9 -8 -7 -6 -6 -6 -6 -5 -5 -5 -5 -5 -5 -4 -4 -4 -4 -3 -3 -2 -1 ------- Run | Yrd Mat Min Exi Min Mat Fac Fac Low Low Zio Pro Fac Ext Cet Arc Hub Fac Upp Upp War Pro Res Res Acc Peak Influence 1541 | . 83 126 . . 571 237 145 . . . . 100 705 753 522 746 360 . . . . 204 160 1541 Initial 360 | . . 31 . . . 191 115 . . . . 21 13 308 241 112 360 . . . . . 108 20 Average 254 | . 61 124 . . 297 193 88 . . . . 37 355 565 389 282 57 . . . . 55 58 470 Maximum Alert Level 4 | . . . . . 2 1 . . . . . . 3 3 2 3 1 . . . . 1 . 4 Low Security (%) 59 | 100 100 100 . 100 31 91 100 . . . . 100 14 . . 30 95 . . . . 99 100 48 Level 1 19 | . . . . . 36 8 . . . . . . 46 5 53 61 4 . . . . . . 11 Level 2 13 | . . . . . 31 . . . . . . . 32 91 46 6 . . . . . . . 8 Level 3 4 | . . . . . . . . . . . . . 6 3 . 1 . . . . . . . 19 Level 4 2 | . . . . . . . . . . . . . . . . . . . . . . . . 12 Level 5 . | . . . . . . . . . . . . . . . . . . . . . . . . . High Security . | . . . . . . . . . . . . . . . . . . . . . . . . . Max Security . | . . . . . . . . . . . . . . . . . . . . . . . . . Squads Dispatched 37 | . . . . . 2 1 1 . . . . 1 2 1 . 6 2 . . . . 3 2 16 Investigation 7 | . . . . . . 1 1 . . . . . 1 1 . 1 . . . . . . 1 1 Extermination 10 | . . . . . . . . . . . . 1 . . . . 1 . . . . 2 . 6 Reinforcement 16 | . . . . . 2 . . . . . . . 1 . . 5 1 . . . . 1 1 5 Assault 4 | . . . . . . . . . . . . . . . . . . . . . . . . 4 Garrison . | . . . . . . . . . . . . . . . . . . . . . . . . . Intercept . | . . . . . . . . . . . . . . . . . . . . . . . . . Searches Triggered . | . . . . . . . . . . . . . . . . . . . . . . . . . Construction Impeded 4 | . . . . . 1 . . . . . . . . . . . . . . . . . . 3 Haulers Reinforced 1 | . . . . . . . . . . . . . . . . 1 . . . . . . . . Active Scanning Responses . | . . . . . . . . . . . . . . . . . . . . . . . . . Cargo Convoy Interrupts . | . . . . . . . . . . . . . . . . . . . . . . . . . Stealth | -11 -10 -10 -10 -9 -8 -7 -6 -6 -6 -6 -5 -5 -5 -5 -5 -5 -4 -4 -4 -4 -3 -3 -2 -1 --------- Run | Yrd Mat Min Exi Min Mat Fac Fac Low Low Zio Pro Fac Ext Cet Arc Hub Fac Upp Upp War Pro Res Res Acc Distress Signals 20 | . . . . . 3 . . . . . . . . 2 . 2 . . . 1 1 3 4 4 Communications Jammed 19 | . . . . . . . . . . . . . . . . 1 8 . . . . 8 . 2 Distress Signals 19 | . . . . . . . . . . . . . . . . 1 8 . . . . 8 . 2 Times Spotted 313 | . 5 1 . . 31 4 1 2 6 . 3 2 22 12 13 32 6 14 15 4 10 25 12 93 Peak Tracking Total 13 | . 2 1 . . 8 4 1 2 3 . 3 2 5 5 1 6 3 5 4 6 6 10 4 13 Tactical Retreats 26 | . . . . . . 1 . 2 . . 1 . . . . 2 . 1 1 . 2 5 . 11 Traps | -11 -10 -10 -10 -9 -8 -7 -6 -6 -6 -6 -5 -5 -5 -5 -5 -5 -4 -4 -4 -4 -3 -3 -2 -1 ------- Run | Yrd Mat Min Exi Min Mat Fac Fac Low Low Zio Pro Fac Ext Cet Arc Hub Fac Upp Upp War Pro Res Res Acc Traps Triggered 13 | . 1 . . . 1 2 1 . . . . 1 1 . . 3 . . . . . . . 3 Indirectly . | . . . . . . . . . . . . . . . . . . . . . . . . . Trap Hack Attempts . | . . . . . . . . . . . . . . . . . . . . . . . . . Triggered . | . . . . . . . . . . . . . . . . . . . . . . . . . Disarmed . | . . . . . . . . . . . . . . . . . . . . . . . . . Reprogrammed . | . . . . . . . . . . . . . . . . . . . . . . . . . Reused . | . . . . . . . . . . . . . . . . . . . . . . . . . Traps Extracted . | . . . . . . . . . . . . . . . . . . . . . . . . . Installed . | . . . . . . . . . . . . . . . . . . . . . . . . . Triggered 7 | . . . . . . . . . . . . . . . . . . . . 7 . . . . Machines | -11 -10 -10 -10 -9 -8 -7 -6 -6 -6 -6 -5 -5 -5 -5 -5 -5 -4 -4 -4 -4 -3 -3 -2 -1 ---------- Run | Yrd Mat Min Exi Min Mat Fac Fac Low Low Zio Pro Fac Ext Cet Arc Hub Fac Upp Upp War Pro Res Res Acc Machines Disabled 33 | . . 1 . . 2 . . . . . . . 2 2 2 10 1 1 . . . 1 3 8 Max in Single Turn 2 | . . 1 . . 1 . . . . . . . 1 1 1 2 1 1 . . . 1 2 2 Garrison Access 7 | . . . . . 1 . . . . . . . . . . 2 . . . . . . 2 2 Network Hub 1 | . . . . . . . . . . . . . . . . 1 . . . . . . . . Energy Cycler 1 | . . . . . . . . . . . . . . . . . . . . . . . . 1 Machines Repaired . | . . . . . . . . . . . . . . . . . . . . . . . . . Machines Dismantled 1 | . . . . . . . . . . . . . . . . . 1 . . . . . . . Machines Sabotaged 1 | . . . . . . . . . . . . . . . . 1 . . . . . . . . Overloaded Fab Kills . | . . . . . . . . . . . . . . . . . . . . . . . . . Hacking | -11 -10 -10 -10 -9 -8 -7 -6 -6 -6 -6 -5 -5 -5 -5 -5 -5 -4 -4 -4 -4 -3 -3 -2 -1 --------- Run | Yrd Mat Min Exi Min Mat Fac Fac Low Low Zio Pro Fac Ext Cet Arc Hub Fac Upp Upp War Pro Res Res Acc Machines Accessed 80 | . 2 . 1 . 7 5 4 . . . . 3 16 3 1 11 4 2 . 5 1 6 1 8 Terminals 48 | . 2 . . . 5 1 . . . . . 2 15 3 . 9 3 . . . 1 3 1 3 Fabricators 4 | . . . . . . 1 1 . . . . . . . . . 1 . . . . . . 1 Repair Stations 2 | . . . . . . 1 1 . . . . . . . . . . . . . . . . . Recycling Units 7 | . . . . . 1 . 1 . . . . 1 1 . . . . . . . . 1 . 2 Scanalyzers 4 | . . . . . . 1 1 . . . . . . . . . . . . . . 2 . . Garrison Access 6 | . . . . . 1 1 . . . . . . . . . 2 . . . . . . . 2 Total Hacks 252 | . 3 . 1 . 13 10 7 . . . . 5 39 10 25 50 21 2 . 11 1 16 6 32 Successful 143 | . 2 . 1 . 3 1 6 . . . . 4 18 6 25 25 16 2 . 11 1 10 3 9 Failed 109 | . 1 . . . 10 9 1 . . . . 1 21 4 . 25 5 . . . . 6 3 23 Catastrophic 24 | . . . . . 3 1 . . . . . 1 3 . . 6 . . . . . . . 10 Database Lockouts . | . . . . . . . . . . . . . . . . . . . . . . . . . Manual 102 | . 2 . 1 . 8 3 1 . . 1 . 2 8 3 . 33 14 . . . . 6 1 19 Terminals 162 | . 3 . . . 9 3 . . . . . 2 37 10 . 43 20 . . . 1 8 6 20 Fabricators 9 | . . . . . . 1 2 . . . . . . . . . 1 . . . . . . 5 Repair Stations 3 | . . . . . . 1 2 . . . . . . . . . . . . . . . . . Recycling Units 15 | . . . . . 2 . 1 . . . . 3 2 . . . . . . . . 2 . 5 Scanalyzers 10 | . . . . . . 2 2 . . . . . . . . . . . . . . 6 . . Garrison Access 14 | . . . . . 2 3 . . . . . . . . . 7 . . . . . . . 2 Terminal Hacks 110 | . 1 . 1 . 2 . . . . . . 1 14 6 25 20 15 2 . 11 1 4 3 4 Record 46 | . . . . . . . . . . . . . 1 5 25 1 2 1 . 10 . . . 1 Part Schematic 3 | . . . . . . . . . . . . . 1 . . 1 1 . . . . . . . Prototype ID Bank 1 | . 1 . . . . . . . . . . . . . . . . . . . . . . . Open Door 12 | . . . . . . . . . . . . . 8 1 . . . 1 . 1 1 . . . Open DSF 1 | . . . . . . . . . . . . . . . . . . . . . . 1 . . Level Access Points 2 | . . . . . . . . . . . . . . . . 1 . . . . . 1 . . Branch Access Points 4 | . . . . . 1 . . . . . . . . . . . 1 . . . . 1 1 . Emergency Access Points 1 | . . . . . 1 . . . . . . . . . . . . . . . . . . . Machine Index 1 | . . . . . . . . . . . . . . . . 1 . . . . . . . . Terminal Index 3 | . . . . . . . . . . . . . . . . 1 1 . . . . 1 . . Fabricator Index 3 | . . . . . . . . . . . . . . . . 1 1 . . . . . 1 . Repair Station Index 1 | . . . . . . . . . . . . . . . . . 1 . . . . . . . Recycling Unit Index 1 | . . . . . . . . . . . . 1 . . . . . . . . . . . . Scanalyzer Index 1 | . . . . . . . . . . . . . . . . . 1 . . . . . . . Garrison Index 3 | . . . . . . . . . . . . . 1 . . 1 . . . . . . 1 . Alert Level 7 | . . . . . . . . . . . . . . . . 4 2 . . . . . . 1 Unreport Threat 10 | . . . . . . . . . . . . . 2 . . 5 2 . . . . . . 1 Locate Traps 1 | . . . . . . . . . . . . . . . . . . . . . . . . 1 Dispatch Records 1 | . . . . . . . . . . . . . . . . . 1 . . . . . . . Patrol Status 1 | . . . . . . . . . . . . . . . . 1 . . . . . . . . Recall Extermination 1 | . . . . . . . . . . . . . . . . . 1 . . . . . . . Recall Reinforcements 2 | . . . . . . . . . . . . . . . . 1 1 . . . . . . . Hauler Manifests 1 | . . . . . . . . . . . . . . . . 1 . . . . . . . . Registered Components 1 | . . . . . . . . . . . . . . . . 1 . . . . . . . . Zone Layout 1 | . . . . . . . . . . . . . 1 . . . . . . . . . . . Derelict Proto ID Bank 1 | . . . 1 . . . . . . . . . . . . . . . . . . . . . Fabricator Hacks 5 | . . . . . . 1 2 . . . . . . . . . 1 . . . . . . 1 Load Schematic 1 | . . . . . . . 1 . . . . . . . . . . . . . . . . . Build 4 | . . . . . . 1 1 . . . . . . . . . 1 . . . . . . 1 Repair Station Hacks 1 | . . . . . . . 1 . . . . . . . . . . . . . . . . . Scan Component 1 | . . . . . . . 1 . . . . . . . . . . . . . . . . . Recycling Unit Hacks 6 | . . . . . . . 1 . . . . 3 1 . . . . . . . . 1 . . Process 1 | . . . . . . . . . . . . 1 . . . . . . . . . . . . Retrieve Matter 1 | . . . . . . . . . . . . 1 . . . . . . . . . . . . Retrieve Components 4 | . . . . . . . 1 . . . . 1 1 . . . . . . . . 1 . . Scanalyzer 6 | . . . . . . . 2 . . . . . . . . . . . . . . 4 . . Insert Component 3 | . . . . . . . 1 . . . . . . . . . . . . . . 2 . . Analyze 3 | . . . . . . . 1 . . . . . . . . . . . . . . 2 . . Garrison Access Hacks 5 | . . . . . 1 . . . . . . . . . . 2 . . . . . . . 2 Seal Access 5 | . . . . . 1 . . . . . . . . . . 2 . . . . . . . 2 Unauthorized Hacks 10 | . 1 . . . . . . . . . . . 3 . . 3 . . . . . 1 . 2 Terminals 8 | . 1 . . . . . . . . . . . 3 . . 3 . . . . . 1 . . Botnet 3 | . . . . . . . . . . . . . 1 . . 1 . . . . . 1 . . Operators 3 | . 1 . . . . . . . . . . . 1 . . 1 . . . . . . . . Sabotage 1 | . . . . . . . . . . . . . . . . 1 . . . . . . . . Search 1 | . . . . . . . . . . . . . 1 . . . . . . . . . . . Fabricators 1 | . . . . . . . . . . . . . . . . . . . . . . . . 1 Fabnet 1 | . . . . . . . . . . . . . . . . . . . . . . . . 1 Repair Stations . | . . . . . . . . . . . . . . . . . . . . . . . . . Recycling Units 1 | . . . . . . . . . . . . . . . . . . . . . . . . 1 Reject 1 | . . . . . . . . . . . . . . . . . . . . . . . . 1 Scanalyzers . | . . . . . . . . . . . . . . . . . . . . . . . . . Garrison Access . | . . . . . . . . . . . . . . . . . . . . . . . . . Data Cores Recovered . | . . . . . . . . . . . . . . . . . . . . . . . . . Used . | . . . . . . . . . . . . . . . . . . . . . . . . . Hacking Detections 49 | . 1 . . . 7 4 2 . . . . 2 9 3 . 7 4 . . . . 4 1 5 Full Trace Events 3 | . . . . . . 1 1 . . . . . . 1 . . . . . . . . . . Feedback Events . | . . . . . . . . . . . . . . . . . . . . . . . . . Feedback Blocked . | . . . . . . . . . . . . . . . . . . . . . . . . . Robot Schematics Acquired . | . . . . . . . . . . . . . . . . . . . . . . . . . Robots Built . | . . . . . . . . . . . . . . . . . . . . . . . . . Authchips . | . . . . . . . . . . . . . . . . . . . . . . . . . Time . | . . . . . . . . . . . . . . . . . . . . . . . . . Total Robot Build Rating . | . . . . . . . . . . . . . . . . . . . . . . . . . Part Schematics Acquired 5 | . . . . . . . 1 . . . . . 1 . . 1 1 . . . . 1 . . Parts Built 6 | . . . . . . 1 1 . . . . . . . . . 2 . . . . . . 2 Authchips . | . . . . . . . . . . . . . . . . . . . . . . . . . Time 360 | . . . . . . 93 93 . . . . . . . . . 128 . . . . . . 46 Total Part Build Rating 48 | . . . . . . 7 7 . . . . . . . . . 16 . . . . . . 18 Parts Repaired . | . . . . . . . . . . . . . . . . . . . . . . . . . Time . | . . . . . . . . . . . . . . . . . . . . . . . . . Parts Recycled . | . . . . . . . . . . . . . . . . . . . . . . . . . Recycled Matter . | . . . . . . . . . . . . . . . . . . . . . . . . . Retrieved Matter . | . . . . . . . . . . . . . . . . . . . . . . . . . Retrieved Components 21 | . . . . . . . 3 . . . . 3 7 . . . . . . . . 8 . . Parts Scanalyzed 3 | . . . . . . . 1 . . . . . . . . . . . . . . 2 . . Part Schematics Acquired 2 | . . . . . . . 1 . . . . . . . . . . . . . . 1 . . Parts Damaged 1 | . . . . . . . 1 . . . . . . . . . . . . . . . . . Bothacking | -11 -10 -10 -10 -9 -8 -7 -6 -6 -6 -6 -5 -5 -5 -5 -5 -5 -4 -4 -4 -4 -3 -3 -2 -1 ------------ Run | Yrd Mat Min Exi Min Mat Fac Fac Low Low Zio Pro Fac Ext Cet Arc Hub Fac Upp Upp War Pro Res Res Acc Used RIF Installer . | . . . . . . . . . . . . . . . . . . . . . . . . . Robots Hacked . | . . . . . . . . . . . . . . . . . . . . . . . . . Non-combat . | . . . . . . . . . . . . . . . . . . . . . . . . . Combat . | . . . . . . . . . . . . . . . . . . . . . . . . . Robot Hacks Applied . | . . . . . . . . . . . . . . . . . . . . . . . . . Relay Couplers Released 2 | . . . . . . . . . . . . . . . . . . . . . . . 1 1 Machine Destruction 2 | . . . . . . . . . . . . . . . . . . . . . . . 1 1 Fabnet Peak Effective % . | . . . . . . . . . . . . . . . . . . . . . . . . . Robots Rewired 14 | . . . . . . . . . . . . . 9 . . . . . . 5 . . . . Allies Hacked . | . . . . . . . . . . . . . . . . . . . . . . . . . Hacks Repelled . | . . . . . . . . . . . . . . . . . . . . . . . . . Allies | -11 -10 -10 -10 -9 -8 -7 -6 -6 -6 -6 -5 -5 -5 -5 -5 -5 -4 -4 -4 -4 -3 -3 -2 -1 -------- Run | Yrd Mat Min Exi Min Mat Fac Fac Low Low Zio Pro Fac Ext Cet Arc Hub Fac Upp Upp War Pro Res Res Acc Total Allies 35 | . . 3 . . . . . . . . . . 23 4 . . . . . 5 . . . . Largest Group 20 | . . 3 3 3 3 . . . . . . . 17 20 19 16 . . . 5 . . . . Highest-Rated Group 969 | . . 40 40 40 40 . . . . . . . 630 969 930 721 . . . 269 . . . . Highest-Rated Ally 159 | . . 16 16 16 16 . . . . . . . 159 153 153 96 . . . 65 . . . . Total Orders 13 | . . . . . . . . . . . . 6 7 . . . . . . . . . . . STAY 4 | . . . . . . . . . . . . 1 3 . . . . . . . . . . . FOLLOW 3 | . . . . . . . . . . . . . 3 . . . . . . . . . . . RETURN 6 | . . . . . . . . . . . . 5 1 . . . . . . . . . . . Ally Attacks 396 | . . . . . 59 . . . . . . . 64 89 26 158 . . . . . . . . Total Damage 10002 | . . . . . 509 . . . . . . . 1629 1945 736 5183 . . . . . . . . Kills 63 | . . . . . 3 . . . . . . . 13 11 3 33 . . . . . . . . Allies Corrupted 1 | . . . . . . . . . . . . . 1 . . . . . . . . . . . Allies Melted . | . . . . . . . . . . . . . . . . . . . . . . . . . Intel | -11 -10 -10 -10 -9 -8 -7 -6 -6 -6 -6 -5 -5 -5 -5 -5 -5 -4 -4 -4 -4 -3 -3 -2 -1 ------- Run | Yrd Mat Min Exi Min Mat Fac Fac Low Low Zio Pro Fac Ext Cet Arc Hub Fac Upp Upp War Pro Res Res Acc Robot Analysis Total . | . . . . . . . . . . . . . . . . . . . . . . . . . Derelict Logs Recovered 9 | . . . . . . . . . 3 1 2 . . . . . . 1 2 . . . . . Drone Launches 6 | . . . . . . . . . . . . 5 1 . . . . . . . . . . . Drone Recoveries 6 | . . . . . . . . . . . . 5 1 . . . . . . . . . . . Decoded 0b10 Intel 20 | . . . . . . . . . . . . . . . . . . . . . . 11 9 . Traps 6 | . . . . . . . . . . . . . . . . . . . . . . 6 . . Emergency Access 14 | . . . . . . . . . . . . . . . . . . . . . . 5 9 . Exploration | -11 -10 -10 -10 -9 -8 -7 -6 -6 -6 -6 -5 -5 -5 -5 -5 -5 -4 -4 -4 -4 -3 -3 -2 -1 ------------- Run | Yrd Mat Min Exi Min Mat Fac Fac Low Low Zio Pro Fac Ext Cet Arc Hub Fac Upp Upp War Pro Res Res Acc Turns Passed 16901 | 71 213 79 344 77 806 314 587 113 210 580 257 601 889 494 639 1330 748 1605 840 723 433 551 1855 2542 Spaces Moved 15730 | 40 119 42 215 45 1125 569 1020 221 396 1054 473 836 848 305 382 937 495 809 531 904 583 993 1578 1210 Core 386 | 2 . . . . 2 . . . . . . . . . . . . . 156 91 . 1 . 134 Treads 3340 | 38 119 42 215 45 . . . . . . . . . . . . 12 809 375 . . . 735 950 Legs 2216 | . . . . . . . . . . . . . 109 305 382 937 483 . . . . . . . Wheels . | . . . . . . . . . . . . . . . . . . . . . . . . . Hover 1299 | . . . . . . . . . . . . . . . . . . . . 813 389 . . 97 Flight 8489 | . . . . . 1123 569 1020 221 396 1054 473 836 739 . . . . . . . 194 992 843 29 Fastest Speed 28 | 50 160 160 160 160 50 50 50 50 50 50 50 50 50 127 127 113 117 180 50 50 31 28 34 40 Average Speed 86 | 154 160 160 160 160 50 50 50 50 50 50 50 50 59 127 127 122 118 180 135 73 62 34 102 138 Slowest Speed 550 | 160 160 160 160 160 550 50 50 50 50 50 50 50 127 127 127 127 180 180 180 156 480 150 180 173 Overloaded Moves . | . . . . . . . . . . . . . . . . . . . . . . . . . Propulsion Burnouts . | . . . . . . . . . . . . . . . . . . . . . . . . . Robots Hopped 23 | . . . . . 8 . . . . . . 5 4 1 . . . . . . . 5 . . Cave-ins Triggered . | . . . . . . . . . . . . . . . . . . . . . . . . . Exploration Rate (%) 46 | 4 29 13 61 11 65 10 11 42 70 85 60 10 72 81 98 58 8 77 68 85 51 26 34 33 Regions Visited 24 Branch Regions 15 Pre-discovered Areas 3 | . . . . . . . . . . 1 1 . . . . . . . 1 . . . . . Known Exits Taken 7 | . . . . . 1 1 . . . . . 1 . . . 1 1 . . . . 1 1 . Unknown Exits Taken 17 | 1 1 1 1 1 . . 1 1 1 1 1 . 1 1 1 . . 1 1 1 1 . . . Scrap Searched 14 | . . 1 . . . . . 1 2 . 3 . . . . . . 2 2 . 3 . . . Spaces Dug 197 | . . . . . . 1 7 . . . . 9 143 . . 5 7 . . . . 18 . 7 Terrain Destroyed 1133 | . 4 10 . . 105 1 7 . 53 . 52 11 269 1 2 97 8 108 254 . . 18 10 123 Melee 47 | . . . . . . . 7 . . . . 9 5 . . 5 . . . . . 18 . 3 Projectile 121 | . . . . . . 1 . . . . 4 2 6 1 2 7 8 18 1 . . . 10 61 AOE 965 | . 4 10 . . 105 . . . 53 . 48 . 258 . . 85 . 90 253 . . . . 59 Terrain Rammed . | . . . . . . . . . . . . . . . . . . . . . . . . . Walls Destroyed . | . . . . . . . . . . . . . . . . . . . . . . . . . Machines Disabled . | . . . . . . . . . . . . . . . . . . . . . . . . . Actions | -11 -10 -10 -10 -9 -8 -7 -6 -6 -6 -6 -5 -5 -5 -5 -5 -5 -4 -4 -4 -4 -3 -3 -2 -1 --------- Run | Yrd Mat Min Exi Min Mat Fac Fac Low Low Zio Pro Fac Ext Cet Arc Hub Fac Upp Upp War Pro Res Res Acc Total 18209 | 46 134 51 216 50 1274 600 1078 222 401 1110 480 973 1180 382 508 1042 625 909 608 956 640 1122 1776 1826 Wait 1291 | . . 5 . 6 30 12 10 . . 24 . 110 213 53 88 33 81 46 29 18 14 29 113 377 Move 15664 | 39 118 41 214 44 1108 568 1019 220 395 1053 472 825 841 302 381 937 494 808 530 903 582 983 1577 1210 Hop 20 | . . . . . 8 . . . . . . 5 2 1 . . . . . . . 4 . . Pick Up 121 | 1 5 1 1 . 13 7 3 . . 9 . 3 5 3 7 1 7 4 4 1 3 7 18 18 Fast Attach 119 | 6 1 . . . 10 1 8 1 1 5 . 1 3 1 2 8 5 3 1 6 9 9 21 17 Attach 79 | . . . . . 3 1 2 . . 1 . 2 10 . 1 1 4 3 7 1 5 3 5 30 Detach 40 | . 1 . . . . 1 1 . . . . 1 6 . . . 1 1 1 1 4 1 2 19 Swap 67 | . 2 . . . 8 1 . . . 3 . . 4 4 2 7 4 . 1 . 3 8 4 16 Drop 161 | . 1 . 1 . 19 8 8 1 . 15 . 3 5 1 8 7 7 4 6 3 11 16 15 22 Fire 436 | . 4 4 . . 75 1 . . 5 . 8 13 33 14 2 32 15 40 29 . 2 31 21 107 Melee 106 | . . . . . . . 9 . . . . 10 10 3 17 15 . . . . 7 31 . 4 Ram 2 | . . . . . . . . . . . . . . . . . . . . . . . . 2 Kick 2 | . . . . . . . . . . . . . . . . 1 1 . . . . . . . Crush 8 | . 2 . . . . . . . . . . . . . . . 2 . . . . . . 4 Escape Stasis 25 | . . . . . . . 18 . . . . . 7 . . . . . . . . . . . Rewire 64 | . . . . . . . . . . . . . 41 . . . . . . 23 . . . . Trap . | . . . . . . . . . . . . . . . . . . . . . . . . . Miscellaneous 4 | . . . . . . . . . . . . . . . . . 4 . . . . . . . Route ------- -11/Scrapyard -10/Materials -10/Mines -10/Exiles -9/Mines -8/Materials -7/Factory -6/Factory -6/Lower Caves -6/Lower Caves -6/Zion -5/Proximity Caves -5/Factory (discovered 4 exits: *Upp x2 / *Ext x2) -5/Extension (discovered 2 exits: *Fac / *Cet) -5/Cetus (discovered 2 exits: *Fac / *Arc) -5/Archives (discovered 3 exits: *Fac / *Hub x2) -5/Hub_04(d) (discovered 4 exits: *Fac x4) -4/Factory (discovered 4 exits: *Res / *Upp x2 / Arm) -4/Upper Caves -4/Upper Caves (discovered 2 exits: *Res / *War) -4/Warlord -3/Proximity Caves -3/Research (discovered 5 exits: *Res x3 / Qua x2) -2/Research (discovered 3 exits: *Acc / Tes x2) -1/Access (discovered 1 exit: Com) History --------- Turn | Location | Event 25 | -11/Scrapyard | Discovered new exit (range 16) 72 | -11/Scrapyard | Entered Materials 242 | -10/Materials | Discovered new exit (range 11) 285 | -10/Materials | Entered Mines 306 | -10/Mines | Build established: Mutant 329 | -10/Mines | Assisted by bots powering up and referring to "LRC-V3" 348 | -10/Mines | Deemed a non-threat by the Exiles lab entrance 350 | -10/Mines | Discovered new exit (range 5) 364 | -10/Mines | Entered Exiles 364 | -10/Exiles | Accompanied by 3 allies 404 | -10/Exiles | Met 8R-AWN 433 | -10/Exiles | Met EX-HEX 476 | -10/Exiles | Met EX-BIN 496 | -10/Exiles | Aligned with FarCom system 497 | -10/Exiles | Given EX-Vault access code 536 | -10/Exiles | Opened EX-Vault 546 | -10/Exiles | Found Flying Fortress v7 582 | -10/Exiles | Warned to stay clear of 0b10 Research branches 633 | -10/Exiles | Met EX-DEC 691 | -10/Exiles | Discovered new exit (range 12) 708 | -10/Exiles | Left Exiles lab with Flying Fortress v7 708 | -10/Exiles | Entered Mines 708 | -9/Mines | Accompanied by 3 allies 750 | -9/Mines | Discovered new exit (range 16) 785 | -9/Mines | Entered Materials 785 | -8/Materials | Accompanied by 3 allies 785 | -8/Materials | Evolved 4 slots: Propulsion x2, Utility x2 1415 | -8/Materials | Discovered new exit (range 16) 1423 | -8/Materials | Identified exit to Factory 1591 | -8/Materials | Entered Factory 1591 | -7/Factory | Evolved 2 slots: Utility x2 1630 | -7/Factory | Discovered new exit (range 12) 1786 | -7/Factory | Fabricated Diametric Drive? 1904 | -7/Factory | Identified exit to Factory 1905 | -7/Factory | Build established: Scout 1905 | -7/Factory | Entered another Factory area 1905 | -6/Factory | Evolved 2 slots: Weapon x2 2164 | -6/Factory | Fabricated Diametric Drive? 2422 | -6/Factory | Build established: Infiltrator-Skirmisher 2466 | -6/Factory | Discovered new exit (range 11) 2492 | -6/Factory | Entered Lower Caves 2601 | -6/Lower Caves | Discovered new exit (range 6) 2605 | -6/Lower Caves | Entered another Lower Caves area 2620 | -6/Lower Caves | Learned 12 Factory zone layouts 2740 | -6/Lower Caves | Spotted B-75 Beast 2748 | -6/Lower Caves | Learned Factory security intel 2798 | -6/Lower Caves | Build established: Infiltrator-Gunner 2805 | -6/Lower Caves | Discovered new exit (range 15) 2809 | -6/Lower Caves | Learned Factory non-interactive machine intel 2815 | -6/Lower Caves | Entered Zion 2883 | -6/Zion | Received a visual enhancement algorithm 2909 | -6/Zion | Found Prototype Special Weapon 2909 | -6/Zion | Identified RU-N14's Throwing Claymores 2917 | -6/Zion | Found RU-N14's Throwing Claymores 2921 | -6/Zion | Found RU-N14's Throwing Claymores 2924 | -6/Zion | Found RU-N14's Throwing Claymores 2999 | -6/Zion | Found CR-A16's Pointy Stick 3167 | -6/Zion | Given A8's code to call for help 3200 | -6/Zion | Learned Factory emergency access door positions 3202 | -6/Zion | Build established: Hacker-Gunner 3260 | -6/Zion | Given the Hacking Drone Bay 3261 | -6/Zion | Found Prototype Device 3261 | -6/Zion | Identified Hacking Drone Bay 3335 | -6/Zion | Discovered new exit (range 15) 3395 | -6/Zion | Entered Proximity Caves 3429 | -5/Proximity Caves | Learned location of Warlord (-4) 3531 | -5/Proximity Caves | Spotted B-75 Beast 3542 | -5/Proximity Caves | Attracted the attention of an 0b10 checkpoint 3611 | -5/Proximity Caves | Discovered new exit (range 14) 3652 | -5/Proximity Caves | Entered Factory 3652 | -5/Factory | Evolved 2 slots: Utility x2 3656 | -5/Factory | Loaded intel: 164 non-interactive machine locations 3806 | -5/Factory | Identified exit to Upper Caves 3806 | -5/Factory | Identified exit to Extension 4242 | -5/Factory | Build established: Hacker-Mutant 4253 | -5/Factory | Entered Extension 4353 | -5/Extension | Rescued a captive Derelict 4354 | -5/Extension | Rescued a captive Derelict 4651 | -5/Extension | Rescued a captive Derelict 4801 | -5/Extension | Rescued a captive Derelict 4802 | -5/Extension | Rescued a captive Derelict 4802 | -5/Extension | Rescued a captive Derelict 4804 | -5/Extension | Rescued a captive Derelict 4828 | -5/Extension | Rescued a captive Derelict 4835 | -5/Extension | Rescued a captive Derelict 4873 | -5/Extension | Rescued A7 4908 | -5/Extension | Rescued a captive Derelict 4922 | -5/Extension | Rescued a captive Derelict 4943 | -5/Extension | Rescued a captive Derelict 4944 | -5/Extension | Rescued a captive Derelict 5075 | -5/Extension | Discovered new exit (range 10) 5078 | -5/Extension | Discovered new exit (range 6) 5142 | -5/Extension | Entered Cetus 5142 | -5/Cetus | Accompanied by 17 allies (A7) 5147 | -5/Cetus | Acquired a Cetus Manufacturing Module code from A7 5153 | -5/Cetus | Spotted Cetus Guard 5153 | -5/Cetus | Spotted Cetus Guard 5157 | -5/Cetus | Allies destroyed Cetus Guard 5158 | -5/Cetus | Spotted Cetus Guard 5161 | -5/Cetus | Spotted Cetus Guard 5168 | -5/Cetus | Destroyed Cetus Guard 5174 | -5/Cetus | Allies destroyed Cetus Guard 5175 | -5/Cetus | Allies destroyed Cetus Guard 5298 | -5/Cetus | Started Cetus Manufacturing Module 5308 | -5/Cetus | Escorted A7 to Cetus Mainframe 5323 | -5/Cetus | Manufactured an Enhanced Grunt 5340 | -5/Cetus | Discovered new exit (range 16) 5348 | -5/Cetus | Manufactured an Enhanced Grunt 5373 | -5/Cetus | Manufactured an Enhanced Grunt 5398 | -5/Cetus | Manufactured an Enhanced Grunt 5411 | -5/Cetus | Cetus Manufacturing Module disabled 5519 | -5/Cetus | Spotted Cetus Guard 5522 | -5/Cetus | Spotted Cetus Guard 5522 | -5/Cetus | Spotted Cetus Guard 5525 | -5/Cetus | Destroyed Cetus Guard 5538 | -5/Cetus | Allies destroyed Cetus Guard 5540 | -5/Cetus | Discovered new exit (range 16) 5543 | -5/Cetus | Allies destroyed Cetus Guard 5548 | -5/Cetus | Met Revision 17 5636 | -5/Cetus | Entered Archives 5636 | -5/Archives | Accompanied by 19 allies (A7) 5644 | -5/Archives | Received a hacking code to weaken MAIN.C 5754 | -5/Archives | Discovered new exit (range 15) 5768 | -5/Archives | Discovered new exit (range 16) 5780 | -5/Archives | Unable to access archive contents 5793 | -5/Archives | Unable to access archive contents 5805 | -5/Archives | Unable to access archive contents 5813 | -5/Archives | Discovered new exit (range 14) 5863 | -5/Archives | Build established: Commander-Skirmisher 6275 | -5/Archives | Entered Hub_04(d) 6275 | -5/Hub_04(d) | Accompanied by 16 allies 6491 | -5/Hub_04(d) | Lost 3 allies 6574 | -5/Hub_04(d) | Build established: Hacker-Skirmisher 6947 | -5/Hub_04(d) | Identified exit to Factory 7028 | -5/Hub_04(d) | Build established: Wizard-Skirmisher 7149 | -5/Hub_04(d) | Lost 5 allies 7557 | -5/Hub_04(d) | Network Hub disabled 7564 | -5/Hub_04(d) | Spotted Lightning 7564 | -5/Hub_04(d) | Spotted Lightning 7566 | -5/Hub_04(d) | Spotted Lightning 7590 | -5/Hub_04(d) | Destroyed Lightning 7590 | -5/Hub_04(d) | Destroyed Lightning 7595 | -5/Hub_04(d) | Lost 3 allies 7605 | -5/Hub_04(d) | Entered Factory 7605 | -4/Factory | Evolved 2 slots: Utility x2 7621 | -4/Factory | Identified exit to Upper Caves 7621 | -4/Factory | Identified exit to Armory 7969 | -4/Factory | Fabricated Quantum Rifle? 8208 | -4/Factory | Discovered new exit (range 11) 8353 | -4/Factory | Entered Upper Caves 8660 | -4/Upper Caves | Build established: Wizard-Tank 9627 | -4/Upper Caves | Learned Research stockpile data 9656 | -4/Upper Caves | Discovered new exit (range 10) 9755 | -4/Upper Caves | Found Alien Artifact 9755 | -4/Upper Caves | Identified Dimensional Node Initializer 9755 | -4/Upper Caves | Initialized slip node 9958 | -4/Upper Caves | Entered another Upper Caves area 9973 | -4/Upper Caves | Discovered new exit (range 11) 10047 | -4/Upper Caves | Encountered a Warlord checkpoint 10266 | -4/Upper Caves | Build established: Hacker-Tank 10393 | -4/Upper Caves | Spotted B-86 Titan 10544 | -4/Upper Caves | Lost 3 parts (1n1u1w) 10553 | -4/Upper Caves | Attracted the attention of an 0b10 checkpoint 10577 | -4/Upper Caves | Learned Research security intel 10729 | -4/Upper Caves | Learned location of Testing (-2) 10743 | -4/Upper Caves | Lost 4 parts (2n2w) 10795 | -4/Upper Caves | Discovered new exit (range 7) 10798 | -4/Upper Caves | Entered Warlord 10815 | -4/Warlord | System corruption cleaned by Quarantine Array 11063 | -4/Warlord | Build established: Wizard-Mutant 11151 | -4/Warlord | Learned Testing stockpile data 11151 | -4/Warlord | Learned Quarantine stockpile data 11152 | -4/Warlord | Learned 4 Access zone layouts 11152 | -4/Warlord | Learned 4 Quarantine zone layouts 11152 | -4/Warlord | Learned Research fabricator intel 11152 | -4/Warlord | Learned Research repair station intel 11175 | -4/Warlord | Warlord's base attacked by MAIN.C 11199 | -4/Warlord | Met Warlord 11204 | -4/Warlord | Found Prototype Device 11204 | -4/Warlord | Identified Minesniffer Drone Bay 11348 | -4/Warlord | Lost 3 allies 11496 | -4/Warlord | Opened side exit 11514 | -4/Warlord | Discovered new exit (range 11) 11517 | -4/Warlord | Spotted Striker 11521 | -4/Warlord | Entered Proximity Caves 11523 | -3/Proximity Caves | Attracted the attention of an 0b10 checkpoint 11745 | -3/Proximity Caves | Snuck into a huge 0b10 base via the rear entrance 11866 | -3/Proximity Caves | Core integrity fell below 50% 11952 | -3/Proximity Caves | Discovered new exit (range 3) 11954 | -3/Proximity Caves | Entered Research 11954 | -3/Research | Evolved 2 slots: Propulsion x1, Utility x1 11957 | -3/Research | Loaded intel: 4 fabricator locations 11958 | -3/Research | Loaded intel: 4 repair station locations 11998 | -3/Research | Identified exit to Quarantine 12080 | -3/Research | Found Prototype Processor 12080 | -3/Research | Identified Exp. Signal Interpreter 12141 | -3/Research | Build established: Wizard-Sprinter 12303 | -3/Research | Lost 3 parts (1p1n1u) 12429 | -3/Research | Identified exit to Research 12458 | -3/Research | Lost 3 parts (1n1u1w) 12484 | -3/Research | Spotted B-86 Titan 12505 | -3/Research | Entered another Research area 12505 | -2/Research | Warlord forces began assault on 0b10 12505 | -2/Research | Evolved 2 slots: Utility x2 12530 | -2/Research | Lost 4 parts (2n2u) 12540 | -2/Research | Identified exit to Testing 12592 | -2/Research | Build established: Wizard-Mutant 12615 | -2/Research | Research machine network offline 12683 | -2/Research | Discovered new exit (range 10) 12687 | -2/Research | Identified exit to Access 13238 | -2/Research | Build established: Wizard-Gunner 13287 | -2/Research | Borebot progress halted 13454 | -2/Research | Found Adv. Powered Armor 13457 | -2/Research | Found Adv. Powered Armor 13671 | -2/Research | Spotted Executioner 13681 | -2/Research | Destroyed Executioner 13726 | -2/Research | Found Prototype Processor 13726 | -2/Research | Identified Exp. Core Analyzer 13748 | -2/Research | Build established: Wizard-Tank 13765 | -2/Research | Spotted Striker 13780 | -2/Research | Destroyed Striker 13883 | -2/Research | Found Exp. Core Analyzer 14360 | -2/Research | Entered Access 14360 | -1/Access | Evolved 2 slots: Propulsion x1, Weapon x1 14361 | -1/Access | Identified exit to Command 14493 | -1/Access | Spotted B-99 Colossus 14548 | -1/Access | Destroyed B-99 Colossus 14562 | -1/Access | Lost 4 parts (3u1w) 14848 | -1/Access | Build established: Hacker-Gunner 14874 | -1/Access | Found Prototype Device 14874 | -1/Access | Identified Exp. ECM Suite 15683 | -1/Access | Fabricated Quantum Reactor (x2) 16110 | -1/Access | First assault squad dispatched 16545 | -1/Access | Destroyed 9 combat bots 16551 | -1/Access | Lost 3 parts (1n1u1w) 16814 | -1/Access | Released all parts (19) 16836 | -1/Access | System corruption reached 10% 16866 | -1/Access | Energy Cycler disabled 16867 | -1/Access | Core integrity fell below 50% 16874 | -1/Access | Core integrity fell below 20% 16902 | -1/Access | Destroyed by S-43 Plague with Heavy Machine Gun Last Messages --------------- Knocked back. Slug penetrates Wall. 54VO,0Q0PJGK|VKYD9% TDD